bitfinex-derivatives/quotes_SOLF0:USTF0_20240905
["timestamp","ask_amount","ask_price","bid_price","bid_amount"]
[1725549980781,0.05643867,130.97,130.94,0.05173037]
[1725549981781,0.05643867,130.97,130.94,3.87033037]
[1725549981980,0.05643867,130.97,130.94,0.05173037]
[1725549982283,2.5932,131.04,130.92,1.3716]
[1725549982485,2.5932,131.04,130.92,32.1616]
[1725549982892,3.8168,131.01,130.92,32.1616]
[1725549983088,30.79,131.08,130.95,30.79]
[1725549983294,2.6662,131.09,130.96,2.6152]
[1725549983487,0.05429713,131.04,131.01,0.05843177]
[1725549983687,0.05429713,131.04,131.01,0.05825585]
[1725549983987,3.87019713,131.04,131.01,0.05825585]
[1725549984382,3.87009713,131.04,131.01,0.05825585]
[1725549984886,0.05429713,131.04,131.01,0.05825585]
[1725549985084,3.87009713,131.04,131.01,0.05825585]
[1725549986089,0.05429713,131.04,131.01,0.05825585]
[1725549987090,3.8161,131.03,131.01,0.05825585]
[1725549987699,0.05429713,131.04,130.95,3.79944818]
[1725549987700,32.1525,131.02,130.95,3.79944818]
[1725549987895,32.1525,131.02,130.81,34.65169665]
[1725549987896,32.1525,131.02,130.92,2.6432]
[1725549988193,30.79,131.04,130.92,2.6432]
[1725549988696,0.04849506,130.99,130.97,0.05361991]
[1725549988890,0.05511652,130.99,130.97,0.05361991]
[1725549989296,3.8175,130.98,130.97,0.05361991]
[1725549990089,30.79,130.99,130.63,19.1382]
[1725549990299,30.79,130.95,130.82,32.1497]
[1725549990595,32.1953,130.98,130.88,3.8204]
[1725549990794,32.1953,130.98,130.89,1.3477]
[1725549990997,0.05558937,130.95,130.92,0.05610944]
[1725549992302,3.819,130.93,130.92,0.05610944]
[1725549993693,0.05558937,130.95,130.92,0.05610944]
[1725549994096,3.8187,130.94,130.92,0.05610944]
[1725549994293,30.84558937,130.95,130.92,0.05610944]
[1725549994699,3.819,130.93,130.92,0.05610944]
[1725549995302,3.819,130.93,130.75,7.53664544]
[1725549995303,30.79,130.93,130.75,7.53664544]
[1725549995602,1.413,130.96,130.76,30.79]
[1725549995603,30.79,130.89,130.76,30.79]
[1725549995809,3.8198,130.91,130.79,30.79]
[1725549996008,31.1655,130.94,130.79,30.79]
[1725549996210,0.05737244,130.88,130.85,0.05192951]
[1725549996501,1.413,130.96,130.85,3.90690009]
[1725549996702,32.203,130.96,130.86,2.7615]
[1725549997008,32.203,130.96,130.86,6.63213498]
[1725549997203,32.203,130.96,130.88,3.8204]
[1725549997406,32.203,130.96,130.86,6.58017502]
[1725549997613,32.203,130.96,130.88,3.8204]
[1725549997912,32.1953,130.98,130.86,37.37017502]
[1725549998212,32.1953,130.98,130.91,0.04992476]
[1725549998710,0.05753708,130.96,130.91,0.04992476]
[1725549999208,30.84753708,130.96,130.91,0.04992476]
[1725549999619,3.8193,130.92,130.91,0.04992476]
[1725550000209,3.8199,130.9,130.82,2.6669]
[1725550000512,32.1869,130.95,130.83,30.79]
[1725550000911,30.79,130.98,130.83,30.79]
[1725550001115,30.79,130.98,130.9,3.8197]
[1725550001311,30.79,130.98,130.86,30.79]
[1725550001613,0.0524883,130.93,130.91,0.05396449]
[1725550001813,0.05645679,130.93,130.91,0.05396449]
[1725550002409,3.8193,130.92,130.91,0.05396449]
[1725550003117,0.05645679,130.93,130.83,3.79012534]
[1725550003308,30.79,130.91,130.84,1.4104]
[1725550003815,30.79,130.9,130.82,2.6669]
[1725550004205,3.73336901,130.92,130.85,0.05601466]
[1725550004206,0.05286296,130.87,130.85,0.05601466]
[1725550004406,30.84518848,130.87,130.79,1.3963]
[1725550004612,3.8213,130.86,130.79,5.2194]
[1725550004817,30.79,130.87,130.79,1.3963]
[1725550005415,30.79,130.87,130.82,0.0518731]
[1725550005612,0.05278125,130.84,130.82,0.0518731]
[1725550007318,0.05278125,130.84,130.82,3.8737731]
[1725550007514,0.05278125,130.84,130.82,0.0518731]
[1725550007913,34.67935617,130.92,130.8,1.3606]
[1725550008315,1.4063,130.91,130.8,1.3606]
[1725550009015,1.4063,130.91,130.84,0.05296379]
[1725550009016,0.05603135,130.87,130.84,0.05296379]
[1725550010116,3.8213,130.85,130.84,0.05296379]
[1725550010318,0.05603135,130.87,130.84,0.05296379]
[1725550012315,3.8213,130.85,130.84,0.05296379]
[1725550014015,0.05603135,130.87,130.84,0.05296379]
[1725550015819,0.05603135,130.87,130.79,1.3963]
[1725550015820,6.80784598,131.05,130.85,30.79]
[1725550016018,32.6929,131.01,130.88,30.79]
[1725550016222,1.60711171,131.04,130.86,2.8505]
[1725550016223,1.3262,131.04,130.86,2.8505]
[1725550016525,30.79,130.99,130.86,6.67420936]
[1725550016723,0.0531309,130.94,130.91,0.05021731]
[1725550017024,0.0531309,130.94,130.78,227.0]
[1725550017025,30.79,130.92,130.78,30.79]
[1725550017226,30.79,130.92,130.79,2.8505]
[1725550017434,30.79,130.89,130.79,6.63363979]
[1725550017621,30.79,130.89,130.79,2.8505]
[1725550018026,0.05047046,130.85,130.83,0.05584173]
[1725550020823,0.4824,130.96,130.8,3.75688073]
[1725550020824,30.79,130.94,130.82,30.79]
[1725550021025,30.79,130.94,130.79,2.8505]
[1725550021026,1.3558,130.95,130.84,30.79]
[1725550021224,223.0,130.99,130.85,2.726]
[1725550021225,30.79,130.99,130.85,2.726]
[1725550021528,32.6842,131.03,130.89,30.79]
[1725550021825,0.04904633,130.97,130.95,0.0484843]
[1725550022029,3.87191404,130.97,130.95,0.05611913]
[1725550022228,34.61148318,130.97,130.85,2.726]
[1725550022429,3.82148318,130.97,130.85,2.726]
[1725550022627,1.4256,130.99,130.87,30.79]
[1725550022827,1.4256,130.99,130.9,3.8198]
[1725550022828,3.8183,130.96,130.9,3.8198]
[1725550023031,1.4256,130.99,130.9,3.88493883]
[1725550023231,0.05378986,130.96,130.93,0.05807139]
[1725550023834,0.05378986,130.96,130.93,3.87687139]
[1725550024131,0.05378986,130.96,130.93,0.05807139]
[1725550024338,3.87208986,130.96,130.93,0.05807139]
[1725550024534,0.05378986,130.96,130.93,0.05807139]
[1725550026929,223.0,131.1,130.91,1.3749]
[1725550026930,3.73815709,131.05,130.95,30.79]
[1725550027131,3.8168,131.01,130.96,3.8181]
[1725550027337,30.79,131.07,130.95,30.79]
[1725550027531,1.3219,131.06,130.95,30.79]
[1725550027831,0.05515211,131.02,130.99,0.05724491]
[1725550028532,3.8167,131.01,130.99,0.05724491]
[1725550029130,0.05515211,131.02,130.99,0.05724491]
[1725550029840,3.87165211,131.02,130.99,0.05724491]
[1725550030231,0.05515211,131.02,130.99,0.05724491]
[1725550031236,1.3219,131.06,130.99,0.05724491]
[1725550031237,1.9937,131.09,130.99,0.05724491]
[1725550031433,3.8154,131.06,131.01,3.8165]
[1725550031638,1.9937,131.09,130.99,1.3485]
[1725550031833,1.4043,131.09,130.99,1.3485]
[1725550032034,3.90704956,131.11,131.0,30.79]
[1725550032239,32.1029,131.12,130.99,1.3485]
[1725550032240,30.79,131.09,130.99,1.3485]
[1725550032540,3.8153,131.06,131.04,0.05615957]
[1725550032735,0.05602564,131.07,131.04,0.05615957]
[1725550033532,3.8155,131.05,131.04,0.05615957]
[1725550033740,30.79,131.07,130.96,5.16422628]
[1725550033933,0.6388,131.06,130.96,5.16422628]
[1725550034737,0.05830945,131.02,131.0,0.05428466]
[1725550035433,0.05830945,131.02,131.0,3.87098466]
[1725550035834,0.05830945,131.02,131.01,3.8166]
[1725550036038,0.05830945,131.02,131.0,0.05428466]
[1725550037035,0.05830945,131.02,131.01,3.8166]
[1725550037237,3.84747575,131.1,130.97,32.1397]
[1725550037436,1.2956,131.11,131.0,30.79]
[1725550037843,3.8141,131.1,131.06,3.8152]
[1725550038139,0.6939,131.14,131.07,0.05279802]
[1725550038140,0.05702288,131.09,131.07,0.05279802]
[1725550038342,0.05702288,131.09,131.08,3.8146]
[1725550038343,0.05526225,131.09,131.08,3.8146]
[1725550038545,1.2956,131.17,131.05,34.53502932]
[1725550038741,1.2956,131.17,131.07,30.79]
[1725550038932,3.8131,131.14,131.08,3.8144]
[1725550039137,3.8131,131.14,131.06,1.4025]
[1725550039336,1.2956,131.17,131.07,30.79]
[1725550039536,0.05174248,131.13,131.11,0.05051594]
[1725550040043,0.05174248,131.13,131.11,3.86421594]
[1725550040239,30.79,131.23,131.11,0.05051594]
[1725550040438,30.79,131.23,131.13,3.8131]
[1725550040639,30.79,131.23,131.1,30.79]
[1725550040640,34.52616361,131.23,131.1,30.79]
[1725550041139,3.8115,131.19,131.1,30.79]
[1725550041338,0.05220712,131.16,131.13,0.05699509]
[1725550041643,0.05277214,131.16,131.14,3.79491672]
[1725550041845,0.05277214,131.16,131.13,0.04859656]
[1725550042037,0.05277214,131.16,131.13,5.28395286]
[1725550042336,0.05277214,131.16,131.15,3.8126]
[1725550042544,0.05277214,131.16,131.15,7.58081076]
[1725550042742,3.4284,131.24,131.15,3.76821076]
[1725550042945,3.8107,131.22,131.17,3.8119]
[1725550043144,3.4284,131.24,131.13,1.4103]
[1725550043145,3.4284,131.24,131.13,5.29639849]
[1725550043341,3.4284,131.24,131.07,30.79]
[1725550043342,30.79,131.2,131.07,30.79]
[1725550043746,0.04967993,131.15,131.12,0.05532265]
[1725550043943,0.04967993,131.15,131.12,0.051387]
[1725550045942,0.04967993,131.15,131.13,3.8129]
[1725550046347,0.04967993,131.15,131.12,0.051387]
[1725550046944,0.04967993,131.15,131.14,3.8129]
[1725550047248,3.4284,131.24,131.14,34.61314873]
[1725550047555,3.4284,131.24,131.15,2.6572]
[1725550047852,3.4284,131.24,131.15,6.39870751]
[1725550048051,3.4284,131.24,131.15,2.6572]
[1725550048347,0.05199317,131.21,131.18,0.05254522]
[1725550048749,30.79,131.2,130.99,104.36065398]
[1725550049044,30.79,131.2,131.06,32.1606]
[1725550049242,30.79,131.2,131.09,3.8141]
[1725550049440,30.79,131.2,131.07,2.6209]
[1725550049843,0.05580396,131.15,131.12,0.05068675]
[1725550050039,0.05580396,131.15,131.12,0.05584619]
[1725550050649,0.05580396,131.15,131.13,3.8445135]
[1725550051253,0.05580396,131.15,131.12,0.05584619]
[1725550051549,3.8109,131.21,131.15,3.8124]
[1725550051747,3.4284,131.24,131.15,3.76477714]
[1725550051947,3.8113,131.2,131.15,3.76477714]
[1725550052343,0.05745645,131.19,131.16,0.05250848]
[1725550053552,0.05745645,131.19,131.16,30.84250848]
[1725550053754,0.05745645,131.19,131.17,3.8117]
[1725550053954,0.05745645,131.19,131.16,32.13600848]
[1725550054154,1.3168,131.28,131.16,32.0835]
[1725550054649,3.8101,131.24,131.19,3.8112]
[1725550054849,5.15497833,131.28,131.16,32.0835]
[1725550055049,30.79,131.27,131.21,0.05697385]
[1725550055443,0.03514844,131.25,131.21,0.05697385]
[1725550055654,3.8105,131.22,131.21,0.05697385]
[1725550056552,0.9625,131.26,131.15,8.88241585]
[1725550056553,3.8112,131.2,131.15,8.88241585]
[1725550056951,30.79,131.25,131.11,34.6036]
[1725550057153,30.79,131.25,131.11,30.79]
[1725550057653,0.9625,131.26,131.17,0.04832055]
[1725550057654,3.8117,131.18,131.17,0.04832055]
[1725550057955,30.79,131.22,131.08,32.1432]
[1725550058155,1.4242,131.21,131.11,3.8135]
[1725550058353,5.18563467,131.21,131.09,1.3366]
[1725550058657,3.8127,131.15,131.1,3.8138]
[1725550058858,0.0566109,131.14,131.11,0.05769793]
[1725550059255,0.0566109,131.14,131.11,3.87129793]
[1725550059654,0.0566109,131.14,131.11,30.84769793]
[1725550059953,1.4242,131.21,131.13,30.79]
[1725550060257,3.8117,131.19,131.14,7.68045001]
[1725550060455,3.8117,131.19,131.14,3.86775001]
[1725550060660,3.8117,131.19,131.14,5.21935001]
[1725550060854,32.077,131.25,131.14,5.21935001]
[1725550061052,1.287,131.25,131.15,30.79]
[1725550061252,0.05155956,131.21,131.18,0.0485295]
[1725550061447,0.05155956,131.21,131.2,3.8111]
[1725550061654,0.05155956,131.21,131.18,30.8385295]
[1725550062349,0.05155956,131.21,131.19,3.8114]
[1725550062550,0.05155956,131.21,131.18,30.8385295]
[1725550063151,0.05155956,131.21,131.2,3.8111]
[1725550063556,0.05155956,131.21,131.18,30.8385295]
[1725550064247,0.05155956,131.21,131.2,3.8111]
[1725550065056,0.05155956,131.21,131.2,34.6011]
[1725550065351,0.05155956,131.21,131.19,1.298]
[1725550065754,0.05155956,131.21,131.18,0.0485295]
[1725550066954,3.8111,131.2,131.18,0.0485295]
[1725550067563,0.05155956,131.21,131.18,0.0485295]
[1725550068463,0.05155956,131.21,131.2,30.74]
[1725550068659,0.05155956,131.21,131.2,34.5511]
[1725550069165,2.2897,131.28,131.22,3.8103]
[1725550069166,3.8095,131.26,131.22,3.8103]
[1725550069362,5.12228518,131.28,131.2,30.74]
[1725550069762,5.12228518,131.28,131.21,7.6364859]
[1725550069763,1.3189,131.28,131.21,7.6364859]
[1725550070068,0.03227238,131.26,131.23,0.05310177]
[1725550070268,3.84167238,131.26,131.23,0.05310177]
[1725550070565,0.03227238,131.26,131.23,0.05310177]
[1725550073066,3.81,131.24,131.23,0.05310177]
[1725550073361,0.03227238,131.26,131.23,0.05310177]
[1725550073967,0.03227238,131.26,131.23,25.67310177]
[1725550074169,0.03227238,131.26,131.23,29.48320177]
[1725550074865,0.03227238,131.26,131.23,25.67310177]
[1725550075881,0.03227238,131.26,131.25,25.62]
[1725550076181,1.3064,131.32,131.25,25.62]
[1725550076374,3.8083,131.3,131.25,29.4294]
[1725550076576,1.3064,131.32,131.25,29.4294]
[1725550076776,1.3064,131.32,131.25,25.62]
[1725550076969,3.8085,131.3,131.25,29.4296]
[1725550077166,3.8085,131.3,131.26,0.05237471]
[1725550077472,248.62,131.4,131.27,25.62]
[1725550077674,2.4438,131.38,131.32,0.05388036]
[1725550077875,25.62,131.35,131.23,25.62]
[1725550078072,25.62,131.35,131.24,3.8098]
[1725550078573,25.62,131.35,131.25,3.8097]
[1725550078774,25.62,131.35,131.25,25.62]
[1725550078972,25.62,131.35,131.22,4.1616]
[1725550078973,0.05304555,131.31,131.29,0.05758264]
[1725550079275,0.04837205,131.31,131.29,0.05712504]
[1725550080079,0.04837205,131.31,131.29,3.95906209]
[1725550080472,0.04837205,131.31,131.29,3.86552504]
[1725550080673,12.0,131.3,131.22,3.87183422]
[1725550080973,12.0,131.3,131.15,1.3868]
[1725550080974,12.0,131.3,131.2,25.62]
[1725550081167,12.0,131.3,131.21,2.843]
[1725550081370,12.0,131.3,131.21,4.2298]
[1725550081575,12.0,131.3,131.21,8.08829752]
[1725550081784,3.8086,131.29,131.21,8.08829752]
[1725550082374,3.8088,131.28,131.24,0.04847656]
[1725550082676,0.05111455,131.26,131.24,0.04847656]
[1725550083476,25.62,131.25,131.16,2.7845]
[1725550083780,1.3681,131.33,131.16,2.7845]
[1725550083781,29.34083248,131.28,131.16,2.7845]
[1725550083980,1.3681,131.33,131.18,34.5716]
[1725550083981,30.76,131.31,131.18,34.5716]
[1725550084277,30.76,131.31,131.18,30.76]
[1725550084475,0.05394605,131.26,131.23,0.04988752]
[1725550084788,0.05394605,131.26,131.23,0.0587835]
[1725550087073,3.81,131.24,131.23,0.0587835]
[1725550087386,3.79602945,131.26,131.23,0.0587835]
[1725550087876,3.7420834,131.26,131.16,2.7963]
[1725550088075,30.76,131.27,131.16,2.7963]
[1725550088276,34.55431093,131.27,131.16,2.7963]
[1725550088886,0.0520656,131.23,131.2,0.05483279]
[1725550089075,0.0541502,131.23,131.2,0.05420606]
[1725550089275,3.8113,131.2,131.13,30.76]
[1725550089477,3.72930279,131.21,131.13,30.76]
[1725550089786,253.76,131.3,131.08,34.5746]
[1725550089787,3.8125,131.16,131.08,34.5746]
[1725550090079,30.76,131.2,131.08,30.76]
[1725550090283,0.05063781,131.15,131.13,0.04980339]
[1725550090471,0.05879085,131.15,131.13,0.04980339]
[1725550090876,3.8129,131.14,131.13,0.04980339]
[1725550091077,0.05879085,131.15,130.94,227.0]
[1725550091078,34.64224311,131.17,131.03,30.76]
[1725550091278,34.64224311,131.17,131.04,3.84753596]
[1725550092077,0.0518414,131.12,131.09,0.05492477]
[1725550092275,0.0518414,131.12,131.09,0.04995883]
[1725550092876,30.76,131.1,131.0,4.0763]
[1725550093077,34.48795969,131.1,131.0,2.7399]
[1725550093578,30.76,131.1,131.0,2.7399]
[1725550093771,30.76,131.1,131.04,0.05668708]
[1725550093977,0.05364719,131.06,131.04,0.05668708]
[1725550094882,3.8155,131.05,131.04,0.05668708]
[1725550096276,3.8159,131.04,130.98,5.1401]
[1725550097176,0.05250971,131.02,131.0,0.04824019]
[1725550097377,0.05229598,131.02,131.0,0.04969038]
[1725550098780,3.87254643,131.02,131.0,0.04969038]
[1725550099085,3.87254643,131.02,130.81,3.73778252]
[1725550099086,0.05229598,131.02,130.88,30.76]
[1725550099284,3.87574077,131.02,130.91,30.76]
[1725550099487,3.8173,130.99,130.94,3.8185]
[1725550099680,3.75658122,131.04,130.93,30.76]
[1725550099983,3.8174,130.99,130.97,0.05372099]
[1725550100178,0.05593574,131.0,130.97,0.05012552]
[1725550100585,3.8174,130.99,130.97,0.05012552]
[1725550100783,0.05593574,131.0,130.97,0.05012552]
[1725550101281,0.05593574,131.0,130.8,3.87306732]
[1725550101282,0.05593574,131.0,130.61,575.0]
[1725550101480,30.76,131.05,130.92,30.76]
[1725550101676,30.76,131.05,130.94,30.76]
[1725550101880,3.72831902,131.07,130.96,30.76]
[1725550102081,30.76,131.08,130.97,1.3782]
[1725550102280,3.8168,131.01,130.97,1.3782]
[1725550102484,3.8168,131.01,130.98,0.05504794]
[1725550102485,0.05694731,131.0,130.98,0.05504794]
[1725550102882,0.05694731,131.0,130.88,30.76]
[1725550103083,34.56173953,131.0,130.85,1.3616]
[1725550103388,3.8195,130.92,130.87,3.8206]
[1725550103684,3.7627865,130.95,130.86,33.4329]
[1725550103886,30.76,130.98,130.86,33.4329]
[1725550103887,3.87090859,130.92,130.89,0.04939842]
[1725550104084,0.05157706,130.92,130.89,0.05242956]
[1725550104485,3.8199,130.9,130.89,0.05242956]
[1725550105890,25.69,130.9,130.76,30.83]
[1725550106089,30.83,130.87,130.76,4.179]
[1725550106289,30.83,130.87,130.77,3.82616042]
[1725550106504,30.83,130.87,130.76,4.179]
[1725550106686,34.74522979,130.87,130.76,8.00286679]
[1725550106894,34.74522979,130.87,130.8,0.05230261]
[1725550106895,0.05781248,130.83,130.8,0.05230261]
[1725550108090,3.8225,130.81,130.8,0.05230261]
[1725550108288,30.83,130.85,130.75,3.14895002]
[1725550108289,30.83,130.82,130.75,3.14895002]
[1725550108489,3.8239,130.76,130.75,3.14895002]
[1725550108695,30.83,130.77,130.63,2.7211]
[1725550108895,30.83,130.74,130.63,2.7211]
[1725550109195,3.8961188,130.74,130.59,8.4353131]
[1725550109400,30.83,130.78,130.59,8.4353131]
[1725550109401,30.83,130.68,130.59,8.4353131]
[1725550109698,30.83,130.66,130.59,8.4353131]
[1725550109903,30.83,130.66,130.62,0.05693586]
[1725550109904,0.05411082,130.65,130.62,0.05693586]
[1725550110201,0.05411082,130.65,130.47,34.67138406]
[1725550110202,3.8342532,130.65,130.46,3.85707724]
[1725550110499,30.83,130.58,130.46,30.83]
[1725550110898,34.71042562,130.58,130.47,3.8322]
[1725550111098,0.05867425,130.54,130.46,30.83]
[1725550111300,0.04932934,130.51,130.46,30.83]
[1725550111603,0.05166052,130.5,130.46,30.83]
[1725550111900,30.83,130.6,130.46,30.83]
[1725550112101,30.83,130.63,130.49,30.83]
[1725550112399,30.83,130.65,130.51,30.83]
[1725550112895,0.05368602,130.59,130.57,0.05765964]
[1725550113097,30.83,130.68,130.57,3.86806122]
[1725550113295,30.83,130.68,130.61,0.05718733]
[1725550113296,0.05005116,130.64,130.61,0.05718733]
[1725550113695,0.05005116,130.64,130.61,3.88538733]
[1725550113894,0.05005116,130.64,130.61,0.05718733]
[1725550114101,0.05005116,130.64,130.62,3.828]
[1725550114402,0.05005116,130.64,130.61,0.05718733]
[1725550114800,0.05005116,130.64,130.63,3.8277]
[1725550115603,3.85278565,130.78,130.6,30.83]
[1725550115802,34.654,130.76,130.61,2.713]
[1725550116102,30.83,130.73,130.61,6.58581238]
[1725550116301,30.83,130.85,130.61,33.543]
[1725550116497,30.83,130.76,130.72,0.04938114]
[1725550116698,30.83,130.76,130.61,37.3108934]
[1725550116699,30.83,130.76,130.73,0.05849034]
[1725550116901,0.0564268,130.75,130.73,0.05849034]
[1725550117103,0.05791018,130.75,130.73,0.05127016]
[1725550118911,3.8245,130.74,130.73,0.05127016]
[1725550119405,30.83,130.72,130.61,2.713]
[1725550119602,3.8259,130.7,130.61,2.713]
[1725550119905,3.8259,130.7,130.61,6.47945744]
[1725550120105,30.83,130.72,130.61,2.713]
[1725550120302,0.05507782,130.68,130.65,0.05070349]
[1725550121210,3.8268,130.67,130.65,0.05070349]
[1725550121804,3.8269,130.66,130.65,0.05070349]
[1725550122102,0.05507782,130.68,130.65,0.05070349]
[1725550122304,3.96877899,130.68,130.65,0.05070349]
[1725550122505,0.05507782,130.68,130.65,0.05070349]
[1725550122700,3.92014494,130.68,130.65,0.05070349]
[1725550123007,0.05507782,130.68,130.65,0.05070349]
[1725550123208,3.8269,130.66,130.65,0.05070349]
[1725550123707,30.83,130.67,130.53,5.26662992]
[1725550123907,30.83,130.62,130.53,1.4142]
[1725550124103,30.83,130.59,130.48,1.3464]
[1725550124707,0.05741486,130.55,130.52,0.02349288]
[1725550126408,0.05741486,130.55,130.52,3.86269028]
[1725550126607,0.05741486,130.55,130.52,0.02349288]
[1725550128419,0.05741486,130.55,130.52,3.94691768]
[1725550128606,0.05741486,130.55,130.52,0.02349288]
[1725550130023,3.8306,130.54,130.52,0.02349288]
[1725550130226,0.05741486,130.55,130.52,0.02349288]
[1725550131022,30.83,130.53,130.52,0.02349288]
[1725550131223,30.83,130.53,130.47,1.3204]
[1725550131928,30.83,130.53,130.4,30.83]
[1725550131929,30.83,130.53,130.44,3.77932832]
[1725550132128,0.04923418,130.5,130.41,1.3528]
[1725550132426,0.04878971,130.47,130.44,3.8331]
[1725550132628,0.04878971,130.47,130.44,3.87095537]
[1725550132825,0.04878971,130.47,130.41,1.3528]
[1725550133026,0.04878971,130.47,130.41,5.19155172]
[1725550133423,0.04878971,130.47,130.41,1.3528]
[1725550133923,0.04878971,130.47,130.39,1.2886]
[1725550133924,30.83,130.46,130.39,1.2886]
[1725550134124,30.88201262,130.44,130.35,1.3528]
[1725550134332,30.83,130.41,130.35,1.3528]
[1725550134626,30.83,130.41,130.32,5.1436291]
[1725550134627,30.8863486,130.41,130.32,5.1436291]
[1725550134835,3.8348,130.39,130.32,1.3574]
[1725550135236,3.8906486,130.41,130.35,3.8359]
[1725550135431,0.0563486,130.41,130.33,30.83]
[1725550135627,0.0563486,130.41,130.32,5.20083821]
[1725550136127,0.0563486,130.41,130.33,30.83]
[1725550136332,30.8863486,130.41,130.32,1.3574]
[1725550136529,0.0563486,130.41,130.35,3.78396009]
[1725550136929,30.8863486,130.41,130.32,1.3574]
[1725550137421,34.6648,130.39,130.32,1.3574]
[1725550137827,0.0563486,130.41,130.33,30.83]
[1725550138026,30.83,130.46,130.37,3.93216176]
[1725550138431,3.8326,130.47,130.41,3.8341]
[1725550138632,30.83,130.49,130.37,3.93216176]
[1725550138836,38.4857,130.63,130.39,30.83]
[1725550139132,0.04971025,130.48,130.46,0.05475103]
[1725550139329,0.05866153,130.48,130.46,0.05310561]
[1725550139631,34.78513916,130.48,130.46,0.05310561]
[1725550139826,34.72647763,130.48,130.38,0.02]
[1725550140028,30.83,130.45,130.38,3.855]
[1725550140230,3.89647763,130.48,130.38,3.855]
[1725550140231,30.83,130.48,130.38,0.02]
[1725550140428,3.8318,130.5,130.44,3.8331]
[1725550140628,30.83,130.51,130.38,0.02]
[1725550140829,0.0489303,130.46,130.38,0.02]
[1725550141028,0.04853016,130.43,130.38,0.02]
[1725550141231,0.05656906,130.42,130.38,0.02]
[1725550141431,0.04858405,130.41,130.38,0.02]
[1725550143036,30.83,130.5,130.38,0.02]
[1725550143430,3.8321,130.49,130.44,3.8333]
[1725550143632,30.83,130.53,130.44,3.8333]
[1725550143633,30.83,130.53,130.45,1.3805]
[1725550143839,30.83,130.55,130.45,1.3805]
[1725550144141,0.0560627,130.51,130.49,0.05330602]
[1725550144635,3.8316,130.5,130.49,0.05330602]
[1725550145428,0.0560627,130.51,130.49,0.05330602]
[1725550145629,30.83,130.5,130.49,0.05330602]
[1725550146038,34.6616,130.5,130.49,0.05330602]
[1725550146427,0.0560627,130.51,130.49,0.05330602]
[1725550147529,30.83,130.57,130.49,0.05330602]
[1725550147733,30.83,130.7,130.49,34.62044625]
[1725550147927,30.83,130.63,130.53,3.8305]
[1725550148133,30.83,130.63,130.52,3.77702806]
[1725550148326,30.83,130.63,130.5,1.3978]
[1725550148534,3.8282,130.62,130.56,3.8296]
[1725550148729,30.83,130.63,130.52,30.83]
[1725550149034,0.05336588,130.59,130.56,0.05205534]
[1725550149338,30.83,130.7,130.56,0.05205534]
[1725550149339,30.83,130.66,130.56,0.05205534]
[1725550149533,3.8273,130.65,130.59,3.8287]
[1725550149732,30.83,130.68,130.54,30.83]
[1725550149931,30.83,130.68,130.57,30.83]
[1725550150129,30.83,130.71,130.62,3.8278]
[1725550150334,30.83,130.71,130.65,0.05480885]
[1725550150535,0.05377403,130.69,130.65,0.05480885]
[1725550150936,30.83,130.76,130.64,30.83]
[1725550151134,3.8242,130.76,130.69,3.8258]
[1725550151331,30.83,130.78,130.65,1.3413]
[1725550151636,3.8234,130.78,130.71,3.8252]
[1725550151944,0.04917581,130.76,130.73,0.0504086]
[1725550152138,0.04917581,130.76,130.73,0.05572472]
[1725550153344,3.87317581,130.76,130.73,0.05572472]
[1725550153535,0.04917581,130.76,130.73,0.05572472]
[1725550154536,3.8242,130.75,130.73,0.05572472]
[1725550154839,0.04917581,130.76,130.73,0.05572472]
[1725550155236,30.83,130.75,130.4,227.0]
[1725550155437,3.8278,130.63,130.57,5.1936]
[1725550155637,3.89654817,130.75,130.57,5.1936]
[1725550155638,30.83,130.66,130.57,5.15962796]
[1725550155841,30.83,130.66,130.57,1.3641]
[1725550156344,30.83,130.7,130.6,0.0488888]
[1725550156345,30.88848894,130.63,130.6,0.0488888]
[1725550156646,30.88623193,130.63,130.6,0.05754956]